[Event "45th FIDE Olympiad 2024"]
[Site "Budapest"]
[Date "2024.09.18"]
[Round "7.46"]
[White "Nogerbek, Kazybek"]
[Black "Abasov, Nijat"]
[Result "1/2-1/2"]
[ECO "D39"]
[WhiteElo "2519"]
[BlackElo "2626"]
[Annotator "TA"]
[PlyCount "65"]
[EventDate "2024.09.05"]
[EventType "team-tourn"]
[EventCountry "HUN"]
[SourceTitle "playchess.com"]
[Source "ChessBase"]
[SourceQuality "1"]
[WhiteTeam "Kazakhstan"]
[BlackTeam "Azerbaijan"]
[WhiteTeamCountry "KAZ"]
[BlackTeamCountry "AZE"]
[TimeControl "40/5400+30:1800+30"]

{[%evp 11,65,14,24,32,28,34,30,40,38,43,48,26,39,39,34,63,41,29,34,37,44,10,20,18,17,16,8,7,20,13,10,10,8,0,0,0,5,2,8,0,0,0,11,7,8,0,12,12,12,0,24,0,13,0,16,0]} 1. d4 {[%emt 0:01:22]} Nf6 {[%emt 0:00:18]} 2. c4 {[%emt 0:00:14]} e6 {[%emt 0:00:06]} 3. Nf3 {[%emt 0:00:09]} d5 {[%emt 0:00:08]} 4. Nc3 {[%emt 0:00:10]} dxc4 {[%emt 0:00:10]} 5. e4 {[%emt 0:01:33]} Bb4 {[%emt 0:00:28]} 6. Bg5 {[%emt 0:05:45]} b5 {[%emt 0:00:17]} 7. a4 {[%emt 0:04:27]} c5 {[%emt 0:00:19]} 8. axb5 {[%emt 0:05:32]} cxd4 {[%emt 0:00:53]} 9. Nxd4 {[%emt 0:00:40] White has an edge.} h6 {[%emt 0:01:23]} 10. Be3 {[%emt 0:05:14]} Nxe4 {[%emt 0:09:23]} 11. Rc1 {[%emt 0:01:52]} (11. Bxc4 $2 {too greedy.} Nxc3 12. bxc3 Bxc3+ 13. Ke2 Bxa1 14. Qxa1 O-O $19) 11... e5 {[%emt 0:10:47]} 12. Nf3 {[%emt 0:00:38]} Qxd1+ {[%emt 0:37:30]} 13. Kxd1 {[%emt 0:02:23]} Bxc3 {[%emt 0:00:22]} 14. bxc3 {[%emt 0:00:29]} Nd6 {[%emt 0:03:54]} 15. Nxe5 {[%emt 0:02:40]} Be6 {[%emt 0:00:12][%cal Oe8g8] Black is weak on the dark squares} 16. Rb1 {[%emt 0:08:19]} f6 {[%emt 0:02:10]} 17. Nf3 {[%emt 0:02:31]} Nd7 {[%emt 0:00:18]} 18. Nd4 {[%emt 0:02:46]} Bd5 {[%emt 0:00:12]} 19. f3 {[%emt 0:02:15]} Kf7 {[%emt 0:13:47]} 20. Bf4 {[%emt 0:04:59]} Ne5 {[%emt 0:00:05]} 21. Be2 {[%emt 0:03:18]} Rhb8 {[%emt 0:00:07]} 22. Kc2 {[%emt 0:01:27]} a6 {[%emt 0:04:00]} 23. bxa6 {[%emt 0:05:57] [#] Rxb8 would now be deadly.} Rxb1 {[%emt 0:00:05]} 24. Rxb1 {[%emt 0:00:11]} Rxa6 {[%emt 0:00:03]} 25. Rb8 {[%emt 0:02:23]} Ke7 {[%emt 0:00:14]} 26. h4 {[%emt 0:01:27]} Ra2+ {[%emt 0:05:14]} 27. Kb1 {[%emt 0:01:09]} Ra6 {[%emt 0:00:04]} 28. h5 {[%emt 0:04:10]} Bf7 {[%emt 0:00:11]} 29. g4 {[%emt 0:00:38]} Bd5 {[%emt 0:00:05]} 30. Bg3 {[%emt 0:06:58]} Kf7 {[%emt 0:01:32]} 31. Bf4 {[%emt 0:01:55]} Ke7 {[%emt 0:00:08]} 32. Bg3 {[%emt 0:01:49]} Kf7 {[%emt 0:00:03]} 33. Bf4 {[%emt 0:00:15] Weighted Error Value: White=0.06 (flawless) /Black=0.03 (flawless) .  Inaccurate:     	White=1     	---        OK:         	White=8     	Black=14     Best:        	---       	Black=1} 1/2-1/2

[Event "45th FIDE Olympiad 2024"]
[Site "Budapest"]
[Date "2024.09.18"]
[Round "7.46"]
[White "Salim Mohammed, Salim Al Amri"]
[Black "Chinasamy, Devarajen"]
[Result "1-0"]
[WhiteElo "1926"]
[BlackElo "1975"]
[PlyCount "117"]
[EventDate "2024.09.05"]
[EventType "team-tourn"]
[EventCountry "HUN"]
[WhiteTeam "Oman"]
[BlackTeam "Mauritius"]
[WhiteTeamCountry "OMN"]
[BlackTeamCountry "MRI"]
[TimeControl "40/5400+30:1800+30"]

1. d4 d5 2. c4 c6 3. Nc3 Nf6 4. Nf3 a6 5. c5 Bg4 6. Ne5 Bh5 7. Qb3 Ra7 8. f3 Nfd7 9. g4 Nxe5 10. gxh5 Ned7 11. e4 e5 12. exd5 Qh4+ 13. Ke2 exd4 14. Ne4 Nxc5 15. Qb6 Nxe4 16. Qxa7 Qf2+ 17. Kd1 Qxf3+ 18. Kc2 Bd6 19. Qxd4 Qxh1 20. Bd2 Nxd2 21. Re1+ Kd8 22. Qxg7 Re8 23. Qf6+ Be7 24. Rxe7 Nd7 25. Rxd7+ Kxd7 26. Bh3+ Kc7 27. Qxf7+ Kb6 28. Qxe8 Nc4 29. Be6 Qxh2+ 30. Kc3 Nd6 31. Qd8+ Ka7 32. a4 Qe5+ 33. Kb3 cxd5 34. Bg8 d4 35. a5 Qc5 36. Qb6+ Qxb6+ 37. axb6+ Kxb6 38. Bxh7 Ne8 39. Kc4 Nf6 40. Bg6 d3 41. Kxd3 Kc5 42. h6 a5 43. h7 Nxh7 44. Bxh7 Kb4 45. Bg8 a4 46. Ba2 b5 47. Kd4 Ka5 48. Kc5 Ka6 49. Kb4 Kb6 50. Bd5 Ka6 51. Bc6 Kb6 52. Bxb5 Ka7 53. Bxa4 Kb6 54. Bd1 Kb7 55. Kb5 Ka7 56. Bf3 Kb8 57. Kb6 Kc8 58. b4 Kb8 59. b5 1-0

[Event "45th FIDE Olympiad 2024"]
[Site "Budapest"]
[Date "2024.09.18"]
[Round "7.47"]
[White "Mamedov, Rauf"]
[Black "Suleymenov, Alisher"]
[Result "1/2-1/2"]
[ECO "A13"]
[WhiteElo "2637"]
[BlackElo "2484"]
[Annotator "RC"]
[PlyCount "94"]
[EventDate "2024.09.05"]
[EventType "team-tourn"]
[EventCountry "HUN"]
[SourceTitle "playchess.com"]
[Source "ChessBase"]
[SourceQuality "1"]
[WhiteTeam "Azerbaijan"]
[BlackTeam "Kazakhstan"]
[WhiteTeamCountry "AZE"]
[BlackTeamCountry "KAZ"]
[TimeControl "40/5400+30:1800+30"]

1. c4 {[%emt 0:00:05]} e6 {[%emt 0:09:56]} 2. g3 {[%emt 0:00:11]} d5 {[%emt 0:00:05]} 3. Bg2 {[%emt 0:00:03]} d4 {[%emt 0:02:26]} 4. b4 {[%emt 0:12:35]} e5 {[%emt 0:06:32]} 5. Bb2 {[%emt 0:07:38]} c5 {[%emt 0:06:39]} 6. bxc5 {[%emt 0:04:42]} Bxc5 {[%emt 0:00:07]} 7. d3 {[%emt 0:00:01]} Nc6 {[%emt 0:01:36]} 8. Nf3 {[%emt 0:00:38]} Nf6 {[%emt 0:00:14]} 9. O-O {[%emt 0:00:08]} O-O {[%emt 0:00:21]} 10. Nbd2 {[%emt 0:00:04]} h6 {[%emt 0:00:16]} 11. Nb3 {[%emt 0:05:26]} Bb6 {[%emt 0:07:32]} 12. Nfd2 {[%emt 0:17:44]} Re8 {[%emt 0:03:45]} 13. Ba3 {[%emt 0:04:59]} Bf5 {[%emt 0:07:22]} 14. Qc2 {[%emt 0:03:49]} Qd7 {[%emt 0:01:55]} 15. Rfe1 {[%emt 0:01:19]} Rad8 {[%emt 0:14:20]} 16. c5 {[%emt 0:14:56]} Bc7 {[%emt 0:00:10]} 17. Nc4 {[%emt 0:00:03]} Rc8 {[%emt 0:12:13]} 18. Nbd2 {[%emt 0:03:14]} Bh3 {[%emt 0:11:09]} 19. Bf3 {[%emt 0:03:35]} Bg4 {[%emt 0:02:36]} 20. Rab1 {[%emt 0:07:29]} Bxf3 {[%emt 0:01:01]} 21. exf3 {[%emt 0:00:06]} Na5 {[%emt 0:01:03]} 22. Ne4 {[%emt 0:02:24]} Nxe4 {[%emt 0:03:17]} 23. fxe4 {[%emt 0:00:04]} b5 {[%emt 0:00:53]} 24. Nxa5 {[%emt 0:05:05]} Bxa5 {[%emt 0:00:05]} 25. Rec1 {[%emt 0:00:01]} Bc3 {[%emt 0:04:07]} 26. Qb3 {[%emt 0:00:05]} Rb8 {[%emt 0:01:30]} 27. Bb4 {[%emt 0:02:47]} Bxb4 {[%emt 0:00:04]} 28. Qxb4 {[%emt 0:00:22]} Rec8 {[%emt 0:00:29]} 29. Qa5 {[%emt 0:00:51]} Rb7 {[%emt 0:01:04]} 30. a4 {[%emt 0:00:54]} bxa4 {[%emt 0:00:19]} 31. Rxb7 {[%emt 0:00:05]} Qxb7 {[%emt 0:00:02]} 32. Qxa4 {[%emt 0:00:05]} Rc6 {[%emt 0:00:57]} 33. Kg2 {[%emt 0:02:14]} Qc7 {[%emt 0:00:36]} 34. Qc4 {[%emt 0:00:32]} a5 {[%emt 0:00:44]} 35. h4 {[%emt 0:01:07]} h5 {[%emt 0:00:18]} 36. Qb5 {[%emt 0:00:46]} g6 {[%emt 0:00:24]} 37. Qc4 {[%emt 0:00:40]} Kh7 {[%emt 0:01:09]} 38. Qa2 {[%emt 0:00:28]} Kg8 {[%emt 0:00:52]} 39. Qc4 {[%emt 0:01:41]} Kh7 {[%emt 0:00:27]} 40. Qd5 {[%emt 0:00:26]} a4 {[%emt 0:00:49]} 41. Qa2 {[%emt 0:30:56]} Kg7 {[%emt 0:05:33]} 42. Qxa4 {[%emt 0:00:00]} Rxc5 {[%emt 0:00:07]} 43. Rxc5 {[%emt 0:00:00]} Qxc5 {[%emt 0:00:06]} 44. Qe8 {[%emt 0:00:00]} Kf6 {[%emt 0:04:51]} 45. Qd8+ {[%emt 0:00:00]} Ke6 {[%emt 0:00:39]} 46. Qe8+ {[%emt 0:00:00]} Kf6 {[%emt 0:00:16]} 47. Qd8+ {[%emt 0:00:00]} Ke6 {[%emt 0:00:23]} 1/2-1/2

[Event "45th FIDE Olympiad 2024"]
[Site "Budapest"]
[Date "2024.09.18"]
[Round "7.47"]
[White "Lam Kin Cheung, Stephane"]
[Black "Al Busaidi, Hamood"]
[Result "0-1"]
[WhiteElo "1677"]
[BlackElo "1881"]
[Annotator "COMBH"]
[PlyCount "64"]
[EventDate "2024.09.05"]
[EventType "team-tourn"]
[EventCountry "HUN"]
[WhiteTeam "Mauritius"]
[BlackTeam "Oman"]
[WhiteTeamCountry "MRI"]
[BlackTeamCountry "OMN"]
[TimeControl "40/5400+30:1800+30"]

1. e4 c5 2. Nc3 e6 3. f4 a6 4. g3 d5 5. Bg2 d4 6. Nce2 Nc6 7. d3 h5 8. Nf3 Be7 9. h3 Qc7 10. O-O b5 11. g4 hxg4 12. hxg4 Nh6 13. g5 Ng4 14. c3 Bb7 15. cxd4 cxd4 16. Bd2 f5 17. Qb3 Qd7 18. a4 fxe4 19. Ne5 Ncxe5 20. fxe5 e3 21. Be1 Bxg2 22. Kxg2 Qb7+ 23. Kg3 Nh2 24. Rf4 Qh1 25. Qxe6 Nf1+ 26. Rxf1 Qh2+ 27. Kf3 Rf8+ 28. Ke4 Qg2+ 29. Kxd4 Rd8+ 30. Kxe3 Rxf1 31. Bb4 Qf3+ 32. Kd2 Qxd3# {0-} 0-1

[Event "45th FIDE Olympiad 2024"]
[Site "Budapest"]
[Date "2024.09.18"]
[Round "7.48"]
[White "Zhalmakhanov, Ramazan"]
[Black "Muradli, Mahammad"]
[Result "0-1"]
[ECO "B90"]
[WhiteElo "2497"]
[BlackElo "2576"]
[Annotator "TA"]
[PlyCount "126"]
[EventDate "2024.09.05"]
[EventType "team-tourn"]
[EventCountry "HUN"]
[SourceTitle "playchess.com"]
[Source "ChessBase"]
[SourceQuality "1"]
[WhiteTeam "Kazakhstan"]
[BlackTeam "Azerbaijan"]
[WhiteTeamCountry "KAZ"]
[BlackTeamCountry "AZE"]
[TimeControl "40/5400+30:1800+30"]

{[%evp 12,126,25,-1,14,20,8,10,30,12,26,26,11,14,23,25,12,0,39,14,0,21,23,0,0,-49,-42,-54,-27,-20,-23,-14,-13,-20,-27,-19,-21,-20,-15,-27,68,81,200,184,173,8,14,10,8,8,12,25,164,163,160,0,0,0,0,-194,-182,-179,0,0,0,0,0,-9,-11,-22,-8,-176,-55,-51,-33,-37,-42,-44,-52,-34,-36,-36,11,-101,-95,-81,-54,-69,-18,-20,-18,-41,-42,-71,-24,-60,-55,-45,0,0,0,0,0,-114,-54,-80,-75,-1503,-166,-29980,-29981,-29981,-29982,-29992,-29993,-29995,-29996]} 1. e4 {[%emt 0:00:03]} c5 {[%emt 0:02:40]} 2. Nf3 {[%emt 0:00:10]} d6 {[%emt 0:00:13]} 3. d4 {[%emt 0:00:13]} cxd4 {[%emt 0:00:05]} 4. Nxd4 {[%emt 0:00:07]} Nf6 {[%emt 0:00:09]} 5. Nc3 {[%emt 0:00:06][%cal Bb1c3,Bc3d5,Bd5c7][%mdl 32]} a6 {[%emt 0:00:09]} 6. h3 {[%emt 0:01:01]} e5 {[%emt 0:00:07]} 7. Nb3 {[%emt 0:00:23]} Be7 {[%emt 0:00:14]} 8. g4 {[%emt 0:01:29]} h6 {[%emt 0:00:22]} 9. Be3 {[%emt 0:00:27]} b5 {[%emt 0:00:14] The position is equal.} 10. Nd5 {[%emt 0:03:36]} Bb7 {[%emt 0:00:58]} 11. Bb6 {[%emt 0:00:22]} Qc8 {[%emt 0:00:08]} 12. Nc7+ {[%emt 0:00:08]} Kf8 {[%emt 0:00:05]} 13. f3 {[%emt 0:00:34]} (13. Nxa8 $5 Bxe4 14. Rg1 Bxa8 15. Be3 $15) 13... Nbd7 {[%emt 0:01:27]} 14. Nxa8 {[%emt 0:00:24]} d5 {[%emt 0:02:49] [#]} (14... Qxa8 $5 15. Bf2 (15. Be3 Bxe4 16. Be2 Bc6 $15) 15... Bxe4 $11) 15. exd5 {[%emt 0:18:08]} Nxd5 {[%emt 0:07:39]} 16. Bf2 {[%emt 0:01:13][%cal Oa2a4]} Qxa8 {[%emt 0:12:14]} 17. Rg1 {[%emt 0:18:18]} (17. a4 $5 bxa4 18. Rxa4 $11) 17... g6 {[%emt 0:13:02]} 18. c3 {[%emt 0:12:13]} (18. h4 $11 {deserves consideration.}) 18... Kg7 $15 {[%emt 0:04:20]} 19. Na5 {[%emt 0:10:34][%cal Of3f4]} Rd8 {[%emt 0:12:02]} 20. Nxb7 {[%emt 0:05:14]} Qxb7 {[%emt 0:00:06]} 21. Qc2 {[%emt 0:00:31]} b4 {[%emt 0:15:06] next ...bxc3 is good for Black.} 22. O-O-O $1 {[%emt 0:08:47]} bxc3 {[%emt 0:02:43]} 23. Bc4 {[%emt 0:02:46]} cxb2+ {[%emt 0:06:13]} 24. Kb1 $1 {[%emt 0:00:11]} N7f6 {[%emt 0:01:08] Black wants to play ...Rc8.} 25. Qb3 {[%emt 0:09:38]} Qc6 {[%emt 0:04:45]} (25... Qxb3 $11 26. Bxb3 Nc3+ 27. Kxb2 Nxd1+ 28. Rxd1 Rxd1 29. Bxd1 Nd5) 26. Bg3 $1 $14 {[%emt 0:02:19][%cal Bf2g3,Bg3e5,Be5b2][%mdl 32]} e4 {[%emt 0:10:58]} (26... Nb6 $16 27. Bxf7 Bc5 28. Rxd8 (28. Bxe5 Bxg1 29. Rxg1 Rf8 $15) 28... Bxg1) 27. Be5 $1 $18 {[%emt 0:00:43]} (27. Kxb2 $2 exf3 28. Kb1 (28. Rgf1 $2 Nb6 $19) 28... Qc5 29. Bxd5 Nxd5 $19) 27... Nb6 {[%emt 0:00:26]} 28. Bxf7 {[%emt 0:01:07]} ({Only move:} 28. Bxa6 $18 {Strongly threatening Bb5.} exf3 29. Rxd8 Bxd8 30. Bd4) 28... exf3 $11 {[%emt 0:00:37][%cal Be4f3,Bf3f2][%mdl 32]} 29. Rxd8 {[%emt 0:02:21]} (29. Kxb2 $2 f2 30. Rgf1 Qe4 31. Rxf2 Qxe5+ 32. Kb1 Rxd1+ 33. Qxd1 Kxf7 $19) 29... Bxd8 {[%emt 0:00:26]} 30. Bxb2 {[%emt 0:01:13] A strong pair of Bishops.} (30. Kxb2 $2 Na4+ (30... Qc5 $2 31. Qe6 $19) 31. Kb1 (31. Ka1 $2 Qc5 $19) 31... Qe4+ 32. Qc2 Qxe5 $19 (32... Kxf7 $2 33. Qxe4 Nxe4 34. Kc2 $19)) 30... Qe4+ {[%emt 0:02:43]} 31. Ka1 {[%emt 0:00:08] Bg8 would now be deadly.} Na4 {[%emt 0:00:52]} (31... f2 $1 $11 32. Rd1 Qe2) 32. Bd5 $18 {[%emt 0:01:03]} f2 {[%emt 0:00:05]} 33. Rc1 {[%emt 0:00:28]} (33. Bxe4 $2 fxg1=Q+ (33... fxg1=R+ $2 34. Bb1 $18) 34. Bb1 Nxb2 35. Qb7+ Kf8 $19) (33. Rd1 $1 $16 Qf4 (33... Qe1 $2 34. Qxa4 f1=Q 35. Qd7+ Be7 36. Qxe7+ Qxe7 37. Rxf1 $18) 34. Qc4 Qxc4 35. Bxc4 Nxb2 36. Kxb2 (36. Rxd8 $2 Nxc4 37. Rd1 Ne3 $19)) 33... Qe1 $11 {[%emt 0:01:23]} 34. Bc4 {[%emt 0:00:57]} Nxb2 {[%emt 0:00:25]} 35. Qxb2 {[%emt 0:00:02]} (35. Kxb2 $11 {and White is okay.} h5 36. g5 Qe5+ 37. Qc3 Qxg5 38. Bxa6) 35... Bc7 $1 $19 {[%emt 0:00:34]} 36. Kb1 {[%emt 0:00:52][%cal Ob2b7]} Qe4+ {[%emt 0:00:22]} (36... Bf4 $1 $19 {[%cal Rf4c1]} 37. Qb7+ Kh8 38. Qc8+ Ne8 39. Bxa6 Bxc1 (39... Qxc1+ 40. Qxc1 Bxc1 41. Kxc1 $18) 40. Qxc1 Kh7) 37. Qc2 $11 {[%emt 0:00:22][%cal Oc2e4]} Qf4 {[%emt 0:00:31]} 38. Rd1 {[%emt 0:00:43]} Be5 {[%emt 0:00:29]} 39. Qb3 {[%emt 0:00:32]} h5 {[%emt 0:00:38]} 40. gxh5 {[%emt 0:00:32]} Nxh5 {[%emt 0:00:31]} 41. Bd3 $2 {[%emt 0:14:00] [#]} (41. Qb7+ $11 {and White has nothing to worry.} Kh6 42. Qd5) 41... Ng3 {[%emt 0:05:17]} ({Black should play} 41... Bf6 $1 $19 {White must now prevent ...Qe5.} 42. Kc2 Qe5 43. Bxa6 Ng3) 42. Qc4 $1 $15 {[%emt 0:03:41]} Qf3 {[%emt 0:02:18][%mdl 1024] Black has compensation.} 43. Kc2 {[%emt 0:00:52]} a5 {[%emt 0:04:53][%cal Oa5a4]} 44. Qe6 {[%emt 0:06:16]} Bf6 {[%emt 0:01:19]} (44... f1=B $2 45. Qxe5+ Qf6 46. Qxf6+ (46. Qxg3 Bxd3+ 47. Qxd3 Kh7 $18) (46. Qxa5 Bxh3 47. Qc7+ Qf7 $18) 46... Kxf6 47. Bxf1 $18) 45. Qg4 {[%emt 0:04:24]} Qc6+ {[%emt 0:01:39]} 46. Qc4 {[%emt 0:00:20]} Qd6 {[%emt 0:01:00]} (46... Qb7 $15 47. Rb1 Qf3) 47. Qg4 {[%emt 0:01:22]} (47. Qg8+ $11 {remains equal.} Kxg8 48. Bc4+ Kg7 49. Rxd6) 47... Qc5+ {[%emt 0:01:31]} 48. Qc4 {[%emt 0:01:19]} Qe5 {[%emt 0:01:11]} 49. Rb1 {[%emt 0:00:20] Prevents Qb2+} Kh6 {[%emt 0:01:06]} (49... Nf5 $1 $15 50. Bxf5 Qxf5+ 51. Qd3 Qe6) 50. Rb5 $11 {[%emt 0:01:06]} Qe3 {[%emt 0:00:53]} 51. Rb1 {[%emt 0:00:24]} a4 {[%emt 0:02:17]} 52. Qf7 {[%emt 0:00:54][%csl Gd3][%cal Rf7g6]} Ne4 {[%emt 0:04:13][%csl Ge4][%cal Re3d2]} 53. Qf8+ $1 {[%emt 0:01:23]} Kh5 {[%emt 0:00:59]} (53... Bg7 $5 54. Qb4 $8 Bd4 $11) 54. Qb4 {[%emt 0:00:16][%csl LRa4,LRe4] Prevents Qd2+} Bc3 $40 {[%emt 0:01:57][%csl Gc3,Ge4][%cal Re3d2][%mdl 128] White needs to defend precisely. Really sharp!} 55. Qb5+ {[%emt 0:00:09]} Kh6 {[%emt 0:01:18]} (55... Kh4 $5 56. Rd1 $8 Be1 $11 (56... Kxh3 $2 57. Qc4 $18)) 56. Rd1 {[%emt 0:00:07] Dodges Qd2+. Threatens to win with Bxe4.} Bf6 {[%emt 0:02:40]} 57. Qc4 {[%emt 0:00:56] [#]} (57. Qc6 $2 f1=Q 58. Bxf1 Qf2+ 59. Kd3 Qd4+ 60. Kc2 Qb2+ 61. Kd3 Nf2+ 62. Kc4 Nxd1 $19) (57. Qb4 $1 $11 Bd4 58. Qf8+ (58. Qe7 f1=Q 59. Qh4+ Kg7 60. Qe7+ Qf7 61. Qxf7+ Kxf7 62. Rf1+ Kg7 63. Bxe4 Qe2+ 64. Kc1 Be3+ 65. Kb1 a3) 58... Kg5 59. Qe7+ Nf6 60. Qxe3+ Bxe3 61. Bf1) 57... Nc5 {[%emt 0:00:57] Black has more active pieces.} (57... Bd4 $6 58. Bf1 (58. Qe6 f1=Q 59. Qg4 Qff2+) 58... Bf6 59. Rd3 $15) (57... Ng3 $1 $17 {Hoping for ...Qe5.} 58. Rb1 f1=B 59. Rxf1 Nxf1 60. Bxf1 Qb6) 58. Bf1 {[%emt 0:01:06]} Ne6 {[%emt 0:01:34]} 59. Bd3 $2 {[%emt 0:00:23][%mdl 8192]} (59. Rd3 $17 Qe5 (59... Nd4+ $2 60. Rxd4 Bxd4 61. Qd3 $19) 60. Rd5) 59... Qe5 $2 {[%emt 0:00:55]} (59... Qxh3 $2 {too greedy.} 60. Qe4 Qg3 (60... Nd4+ $2 61. Kb1 $18) 61. Rh1+ (61. Qxe6 Qc7+ 62. Qc4 Qe5 $18) 61... Kg7 62. Qxe6 $18) (59... Nd4+ 60. Kb1 Qf3 (60... Qxh3 61. Qc1+ Kg7 62. Qc7+ Kh8 63. Qb8+ Kg7 64. Qb7+ Kf8 65. Qb4+ Kg7 66. Qb7+ Kf8 67. Qb8+ Kg7 68. Qb7+ $11) 61. Qxa4 Qb7+ (61... Qxh3 62. Qc4 $11) 62. Kc1 Bg5+ 63. Rd2 Nf3 (63... Bxd2+ $2 64. Kxd2 Qb2+ 65. Ke3 $19)) 60. Kd2 $2 {[%emt 0:00:36]} (60. Bf1 $19) 60... Bg5+ {[%emt 0:00:44] Black mates.} 61. Kc2 {[%emt 0:00:02]} Nd4+ {[%emt 0:00:15]} 62. Kb1 {[%emt 0:00:15]} Qb8+ {[%emt 0:00:08]} 63. Ka1 {[%emt 0:00:12] [#]} Nc2+ $1 {[%emt 0:00:23][%mdl 512] What a fight!   Weighted Error Value: White=0.35/Black=0.24 (precise) .  Loses game:     	White=3     	---        Missed win:     	White=1     	Black=1      Mistake:       	White=5     	Black=8      Inaccurate:     	White=1     	Black=3      OK:         	White=17    	Black=20     Best:        	White=10    	Black=7      Strong:       	White=6     	Black=1} 0-1

[Event "45th FIDE Olympiad 2024"]
[Site "Budapest"]
[Date "2024.09.18"]
[Round "7.48"]
[White "Al Mashikhi, Mohammed Alyan"]
[Black "Naipal, Hoolan"]
[Result "1-0"]
[WhiteElo "1959"]
[BlackElo "1851"]
[PlyCount "47"]
[EventDate "2024.09.05"]
[EventType "team-tourn"]
[EventCountry "HUN"]
[WhiteTeam "Oman"]
[BlackTeam "Mauritius"]
[WhiteTeamCountry "OMN"]
[BlackTeamCountry "MRI"]
[TimeControl "40/5400+30:1800+30"]

1. e4 c5 2. Nf3 g6 3. d4 cxd4 4. Nxd4 Bg7 5. Nc3 Nc6 6. Be3 Nh6 7. f3 O-O 8. Nxc6 dxc6 9. Qc1 Ng4 10. fxg4 Bxc3+ 11. bxc3 Bxg4 12. Bd3 Qa5 13. Qb2 e5 14. O-O Kg7 15. h3 Be6 16. Qxb7 Qxc3 17. Qe7 h5 18. Qf6+ Kh7 19. Rab1 c5 20. Qg5 Rh8 21. Rb7 Raf8 22. Re7 Bxa2 23. Rf6 Kg7 24. Qxg6# 1-0

[Event "45th FIDE Olympiad 2024"]
[Site "Budapest"]
[Date "2024.09.18"]
[Round "7.49"]
[White "Shirov, Alexei"]
[Black "Neiksans, Arturs"]
[Result "1/2-1/2"]
[ECO "A88"]
[WhiteElo "2666"]
[BlackElo "2571"]
[Annotator "TA"]
[PlyCount "86"]
[EventDate "2024.09.05"]
[EventType "team-tourn"]
[EventCountry "HUN"]
[SourceTitle "playchess.com"]
[Source "ChessBase"]
[SourceQuality "1"]
[WhiteTeam "Spain"]
[BlackTeam "Latvia"]
[WhiteTeamCountry "ESP"]
[BlackTeamCountry "LAT"]
[TimeControl "40/5400+30:1800+30"]

{[%evp 20,86,12,0,0,0,0,-9,0,0,0,0,0,0,0,-23,97,99,127,35,55,0,0,0,0,0,0,0,0,0,0,0,0,0,0,0,0,0,0,0,0,0,0,0,0,-8,-2,-5,-7,-2,-4,-7,-8,-50,-58,-55,0,0,0,0,-30,-60,0,0,0,0,0,0,0]} 1. d4 {[%emt 0:00:02]} f5 {[%emt 0:01:03]} 2. g3 {[%emt 0:02:19]} Nf6 {[%emt 0:00:05]} 3. Bg2 {[%emt 0:00:04]} g6 {[%emt 0:00:07]} 4. Nf3 {[%emt 0:05:35]} Bg7 {[%emt 0:00:07]} 5. c4 {[%emt 0:00:43]} O-O {[%emt 0:02:06]} 6. Nc3 {[%emt 0:00:05]} d6 {[%emt 0:00:51]} 7. O-O {[%emt 0:02:59]} c6 {[%emt 0:00:10]} 8. d5 {[%emt 0:09:37]} e5 {[%emt 0:00:40]} 9. dxe6 {[%emt 0:00:32]} Bxe6 {[%emt 0:00:07]} 10. b3 {[%emt 0:00:29]} Na6 {[%emt 0:00:39]} 11. Bf4 {[%emt 0:03:25]} Nh5 {[%emt 0:03:17] [#] ...Nxf4 is the strong threat.} 12. Bg5 {[%emt 0:09:41]} Qa5 {[%emt 0:34:48]} 13. Qxd6 {[%emt 0:01:30]} Rae8 {[%emt 0:06:42]} 14. Na4 {[%emt 0:12:45]} Bxa1 {[%emt 0:01:09]} 15. Rxa1 {[%emt 0:10:20]} Bxc4 {[%emt 0:06:23]} 16. bxc4 {[%emt 0:01:54] [#] aiming for Qd1.} Qxa4 {[%emt 0:00:04]} 17. Rb1 {[%emt 0:17:48]} Rf7 {[%emt 0:26:12]} (17... Qxc4 $11 {remains equal.} 18. Rxb7 Nc5) 18. Ne5 $16 {[%emt 0:00:55][%cal Bf3e5,Be5d7,Bd7f6][%mdl 32]} Qxa2 {[%emt 0:06:44]} 19. Rd1 {[%emt 0:03:56] White is more active.} (19. Nxf7 $16 {White wants to mate with Nh6+.} Qxb1+ 20. Bf1) 19... Rc7 $1 $14 {[%emt 0:03:39]} 20. Bh6 {[%emt 0:04:20]} (20. Bf3 $1 $14 Ng7 21. Bd8 (21. Nd7 Rxd7 22. Qxd7 Nc5 $11)) 20... Ng7 $1 $11 {[%emt 0:01:38]} 21. Nd7 {[%emt 0:08:07] Threatening mate with Nf6+.} Qxe2 {[%emt 0:00:13]} 22. Nf6+ {[%emt 0:01:12]} Kf7 {[%emt 0:00:18]} 23. Bxg7 {[%emt 0:02:31]} ({But not} 23. Nxh7 Ne6 24. Ng5+ Nxg5 25. Bxg5 Qe6 $17 (25... Qxc4 26. Qf6+ Kg8 27. Qxg6+ Kf8 28. Bh6+ Ke7 29. Re1+)) (23. Bf1 $5 Qe7 $8 24. Nxe8 Nxe8 25. Qd4 $15) 23... Kxg7 {[%emt 0:01:13]} 24. Bf1 {[%emt 0:00:06] Dancing on a razor blade.} Qe7 {[%emt 0:01:14]} 25. Nxe8+ {[%emt 0:00:05]} Qxe8 {[%emt 0:00:03]} 26. Qd4+ {[%emt 0:00:05]} Kh6 {[%emt 0:00:58]} 27. Qh4+ {[%emt 0:00:05]} Kg7 {[%emt 0:00:03] Strongly threatening ...Qe5.} 28. Qd4+ {[%emt 0:00:02]} Kh6 {[%emt 0:00:16]} 29. c5 {[%emt 0:01:24] Hoping for Qd2+.} Qe7 {[%emt 0:02:21]} 30. Bxa6 {[%emt 0:02:02]} bxa6 {[%emt 0:00:02][%mdl 4096] Endgame. KQR-KQR} 31. Qf4+ {[%emt 0:00:07]} Kg7 {[%emt 0:00:07][%cal Oc7d7]} 32. h4 {[%emt 0:00:57]} Rd7 {[%emt 0:00:36]} 33. Rd6 {[%emt 0:00:25]} Rxd6 {[%emt 0:00:37]} 34. cxd6 {[%emt 0:00:06] KQ-KQ} Qd7 {[%emt 0:00:04]} ({Not} 34... Qe4 $2 35. Qxe4 fxe4 36. d7 $18) 35. Qd4+ {[%emt 0:00:47]} Kf7 {[%emt 0:00:07]} 36. Qc4+ {[%emt 0:00:06]} (36. f4 $5) 36... Kf6 {[%emt 0:00:42]} 37. Qxa6 {[%emt 0:00:41]} Qxd6 {[%emt 0:01:21]} ({Black should try} 37... c5 $15) 38. Qxa7 {[%emt 0:00:09]} h5 {[%emt 0:00:11]} 39. Qa1+ {[%emt 0:01:20]} Kf7 {[%emt 0:00:09]} 40. Qa2+ {[%emt 0:00:25]} Ke7 {[%emt 0:00:46]} (40... Qe6 $1 $15 41. Qa5 Qe7) 41. Qa7+ {[%emt 0:30:36] The position is equal.} Kf6 {[%emt 0:31:18]} 42. Qa1+ {[%emt 0:00:19]} Qe5 {[%emt 0:00:25]} 43. Qa8 {[%emt 0:00:00]} Qd6 {[%emt 0:00:00] Weighted Error Value: White=0.08 (flawless) /Black=0.08 (flawless) .  Mistake:       	White=2     	Black=3      Inaccurate:     	White=2     	---        OK:         	White=19    	Black=10     Best:        	White=1     	Black=4      Strong:       	---       	Black=2} 1/2-1/2